fUSD/lending_fUSD_20240702
["ID","MTS","AMOUNT","RATE_DAILY","PERIOD"]
[330928853,1719945118555,-500.0,0.00022465,4]
[330928854,1719945118564,-500.0,0.00022465,4]
[330928855,1719945118573,-11809.1,0.00022465,4]
[330928856,1719945118583,-557.6,0.00022465,4]
[330928857,1719945118592,-500.0,0.00022465,4]
[330928858,1719945118601,-873.83,0.00022465,4]
[330928859,1719945118611,-873.83,0.00022465,4]
[330928860,1719945118620,-557.6,0.00022465,4]
[330928861,1719945118630,-500.0,0.00022465,4]
[330928862,1719945118639,-11809.1,0.00022465,4]
[330928863,1719945118648,-873.83,0.00022465,4]
[330928864,1719945118658,-500.0,0.00022465,4]
[330928865,1719945118667,-557.6,0.00022465,4]
[330928866,1719945118677,-873.83,0.00022465,4]
[330928867,1719945118687,-11809.1,0.00022465,4]
[330928868,1719945118698,-873.83,0.00022465,4]
[330928869,1719945118708,-873.83,0.00022465,4]
[330928870,1719945118717,-371.44,0.00022465,4]
[330928871,1719945118726,-11809.1,0.00022465,4]
[330928872,1719945118735,-873.83,0.00022465,4]
[330928873,1719945118745,-557.6,0.00022465,4]
[330928874,1719945118754,-873.83,0.00022465,4]
[330928875,1719945118763,-557.8,0.00022465,4]
[330928876,1719945118776,-3491.24341605,0.00022465,4]
[330928877,1719945118811,-8317.85658395,0.00022465,4]
[330928878,1719945118823,-873.83,0.00022465,4]
[330928879,1719945118833,-151.0,0.00022465,7]
[330928880,1719945118842,-874.02,0.00022465,4]
[330928881,1719945118851,-151.0,0.00022465,7]
[330928882,1719945118861,-11809.1,0.00022465,4]
[330928883,1719945118871,-500.0,0.00022465,4]
[330928884,1719945118881,-151.0,0.00022465,7]
[330928885,1719945118891,-500.0,0.00022465,4]
[330928886,1719945118901,-151.0,0.00022465,7]
[330928887,1719945118912,-500.0,0.00022465,4]
[330928888,1719945118923,-151.0,0.00022465,7]
[330928889,1719945118932,-11809.1,0.00022465,4]
[330928890,1719945118943,-500.0,0.00022465,4]
[330928891,1719945118953,-500.0,0.00022465,4]
[330928892,1719945118964,-151.0,0.00022465,7]
[330928893,1719945118974,-500.0,0.00022465,4]
[330928894,1719945118986,-151.0,0.00022465,7]
[330928895,1719945118996,-500.0,0.00022465,4]
[330928896,1719945119007,-151.0,0.00022465,7]
[330928897,1719945119016,-159.92,0.00022465,4]
[330928898,1719945119026,-500.0,0.00022465,4]
[330928899,1719945119036,-500.0,0.00022465,4]
[330928900,1719945119047,-11809.1,0.00022465,4]
[330928901,1719945119056,-500.0,0.00022465,4]
[330928902,1719945119067,-500.0,0.00022465,4]
[330928903,1719945119076,-151.0,0.00022465,7]
[330928904,1719945119086,-500.0,0.00022465,4]
[330928905,1719945119096,-11809.1,0.00022465,4]
[330928906,1719945119106,-151.0,0.00022465,7]
[330928907,1719945119115,-151.0,0.00022465,7]
[330928908,1719945119127,-500.0,0.00022465,4]
[330928909,1719945119137,-500.0,0.00022465,4]
[330928910,1719945119146,-11809.1,0.00022465,4]
[330928911,1719945119156,-500.0,0.00022465,4]
[330928912,1719945119167,-500.0,0.00022465,4]
[330928913,1719945119176,-500.0,0.00022465,4]
[330928914,1719945119187,-1275.04,0.00022465,4]
[330928915,1719945119197,-500.0,0.00022465,4]
[330928916,1719945119207,-1021.43,0.00022465,4]
[330928917,1719945119216,-1275.04,0.00022465,4]
[330928918,1719945119226,-500.0,0.00022465,4]
[330928919,1719945119235,-500.0,0.00022465,4]
[330928920,1719945119245,-1021.43,0.00022465,4]
[330928921,1719945119255,-1275.04,0.00022465,4]
[330928922,1719945119264,-500.0,0.00022465,4]
[330928923,1719945119274,-500.0,0.00022465,4]
[330928924,1719945119285,-1021.43,0.00022465,4]
[330928925,1719945119294,-1275.04,0.00022465,4]
[330928926,1719945119303,-500.0,0.00022465,4]
[330928927,1719945119313,-500.0,0.00022465,4]
[330928928,1719945119322,-1021.43,0.00022465,4]
[330928929,1719945119333,-500.0,0.00022465,4]
[330928930,1719945119348,-1275.04,0.00022465,4]
[330928931,1719945119357,-1021.43,0.00022465,4]
[330928932,1719945119367,-500.0,0.00022465,4]
[330928933,1719945119378,-1275.04,0.00022465,4]
[330928934,1719945119389,-500.0,0.00022465,4]
[330928935,1719945119399,-1021.43,0.00022465,4]
[330928936,1719945119411,-500.0,0.00022465,4]
[330928937,1719945119420,-1275.04,0.00022465,4]
[330928938,1719945119432,-1021.43,0.00022465,4]
[330928939,1719945119441,-500.0,0.00022465,4]
[330928940,1719945119452,-1275.04,0.00022465,4]
[330928941,1719945119461,-500.0,0.00022465,4]
[330928942,1719945119471,-11809.3352,0.00022465,4]
[330928943,1719945119480,-500.0,0.00022465,4]
[330928944,1719945119490,-500.0,0.00022465,4]
[330928945,1719945119499,-1021.43,0.00022465,4]
[330928946,1719945119508,-500.0,0.00022465,4]
[330928947,1719945119518,-1275.04,0.00022465,4]
[330928948,1719945119528,-500.0,0.00022465,4]
[330928949,1719945119538,-500.0,0.00022465,4]
[330928950,1719945119547,-1021.43,0.00022465,4]
[330928951,1719945119556,-500.0,0.00022465,4]
[330928952,1719945119567,-500.0,0.00022465,4]
[330928953,1719945119577,-500.0,0.00022465,4]
[330928954,1719945119586,-1275.04,0.00022465,4]
[330928955,1719945119596,-624.98,0.00022465,4]
[330928956,1719945119605,-500.0,0.00022465,4]
[330928957,1719945119615,-1021.43,0.00022465,4]
[330928958,1719945119624,-500.0,0.00022465,4]
[330928959,1719945119634,-1275.04,0.00022465,4]
[330928960,1719945119643,-500.0,0.00022465,4]
[330928961,1719945119652,-1021.43,0.00022465,4]
[330928962,1719945119662,-500.0,0.00022465,4]
[330928963,1719945119682,-500.0,0.00022465,4]
[330928964,1719945119700,-1275.04,0.00022465,4]
[330928965,1719945119713,-151.0,0.00022465,7]
[330928966,1719945119727,-500.0,0.00022465,4]
[330928967,1719945119742,-500.0,0.00022465,4]
[330928968,1719945119758,-1021.43,0.00022465,4]
[330928969,1719945119772,-424.91821605,0.00022465,4]
[330928970,1719945119804,-75.08178395,0.00022465,4]
[330928971,1719945119818,-1275.04,0.00022465,4]
[330928972,1719945119831,-151.0,0.00022465,7]
[330928973,1719945119845,-1021.43,0.00022465,4]
[330928974,1719945119859,-500.0,0.00022465,4]
[330928975,1719945119873,-500.0,0.00022465,4]
[330928976,1719945119885,-500.0,0.00022465,4]
[330928977,1719945119897,-1275.04,0.00022465,4]
[330928978,1719945119911,-216.36,0.00022465,4]
[330928979,1719945119925,-1275.04,0.00022465,4]
[330928980,1719945119939,-500.0,0.00022465,4]
[330928981,1719945119955,-1021.43,0.00022465,4]
[330928982,1719945119970,-194.46,0.00022465,4]
[330928983,1719945119981,-1275.04,0.00022465,4]
[330928984,1719945119992,-500.0,0.00022465,4]
[330928985,1719945120006,-151.0,0.00022465,7]
[330928986,1719945120021,-1021.43,0.00022465,4]
[330928987,1719945120034,-500.0,0.00022465,4]
[330928988,1719945120047,-151.0,0.00022465,7]
[330928989,1719945120061,-1275.04,0.00022465,4]
[330928990,1719945120074,-1021.43,0.00022465,4]
[330928991,1719945120086,-151.0,0.00022465,7]
[330928992,1719945120100,-1275.04,0.00022465,4]
[330928993,1719945120113,-1021.43,0.00022465,4]
[330928994,1719945120126,-500.0,0.00022465,4]
[330928995,1719945120138,-500.0,0.00022465,4]
[330928996,1719945120150,-151.0,0.00022465,7]
[330928997,1719945120163,-1021.43,0.00022465,4]
[330928998,1719945120176,-500.0,0.00022465,4]
[330928999,1719945120188,-1275.04,0.00022465,4]
[330929000,1719945120200,-1021.43,0.00022465,4]
[330929001,1719945120213,-151.0,0.00022465,7]
[330929003,1719945120226,-500.0,0.00022465,4]
[330929004,1719945120239,-1275.04,0.00022465,4]
[330929005,1719945120251,-1021.43,0.00022465,4]
[330929006,1719945120264,-230.604181,0.00022465,7]
[330929007,1719945120276,-500.0,0.00022465,4]
[330929008,1719945120289,-1275.04,0.00022465,4]
[330929009,1719945120301,-500.0,0.00022465,4]
[330929010,1719945120314,-1275.04,0.00022465,4]
[330929011,1719945120327,-1021.43,0.00022465,4]
[330929012,1719945120340,-500.0,0.00022465,4]
[330929013,1719945120355,-500.0,0.00022465,4]
[330929014,1719945120367,-1275.04,0.00022465,4]
[330929015,1719945120380,-500.0,0.00022465,4]
[330929016,1719945120392,-1021.43,0.00022465,4]
[330929017,1719945120404,-500.0,0.00022465,4]
[330929018,1719945120416,-1275.09,0.00022465,4]
[330929019,1719945120430,-574.36,0.00022465,4]
[330929020,1719945120443,-500.0,0.00022465,4]
[330929021,1719945120455,-1021.43,0.00022465,4]
[330929022,1719945120468,-500.0,0.00022465,4]
[330929023,1719945120480,-500.0,0.00022465,4]
[330929024,1719945120492,-1021.63,0.00022465,4]
[330929025,1719945120505,-500.0,0.00022465,4]
[330929026,1719945120518,-500.0,0.00022465,4]
[330929027,1719945120532,-500.0,0.00022465,4]
[330929028,1719945120544,-500.0,0.00022465,4]
[330929029,1719945120557,-500.0,0.00022465,4]
[330929030,1719945120570,-500.0,0.00022465,4]
[330929031,1719945120585,-500.0,0.00022465,4]
[330929032,1719945120596,-500.0,0.00022465,4]
[330929033,1719945120605,-500.0,0.00022465,4]
[330929034,1719945120615,-165.77,0.00022465,4]
[330929035,1719945120625,-500.0,0.00022465,4]
[330929036,1719945120639,-500.0,0.00022465,4]
[330929037,1719945120650,-579.92,0.00022465,4]
[330929038,1719945120659,-500.0,0.00022465,4]
[330929039,1719945120671,-500.0,0.00022465,4]
[330929040,1719945120682,-1134.04,0.00022465,4]
[330929041,1719945120694,-500.0,0.00022465,4]
[330929042,1719945120704,-579.92,0.00022465,4]
[330929043,1719945120714,-1134.04,0.00022465,4]
[330929044,1719945120723,-500.0,0.00022465,4]
[330929045,1719945120732,-500.0,0.00022465,4]
[330929046,1719945120742,-500.0,0.00022465,4]
[330929047,1719945120751,-579.92,0.00022465,4]
[330929048,1719945120760,-500.0,0.00022465,4]
[330929049,1719945120769,-500.0,0.00022465,4]
[330929050,1719945120779,-1134.04,0.00022465,4]
[330929051,1719945120788,-500.0,0.00022465,4]
[330929052,1719945120798,-579.92,0.00022465,4]
[330929053,1719945120808,-500.0,0.00022465,4]
[330929054,1719945120818,-500.0,0.00022465,4]
[330929055,1719945120828,-1134.04,0.00022465,4]
[330929056,1719945120837,-204.15,0.00022465,4]
[330929057,1719945120846,-500.0,0.00022465,4]
[330929058,1719945120855,-579.92,0.00022465,4]
[330929059,1719945120865,-400.02,0.00022465,4]
[330929060,1719945120873,-1134.04,0.00022465,4]
[330929061,1719945120884,-500.0,0.00022465,4]
[330929062,1719945120894,-579.92,0.00022465,4]
[330929063,1719945120904,-1134.04,0.00022465,4]
[330929064,1719945120913,-500.0,0.00022465,4]
[330929065,1719945120922,-500.0,0.00022465,4]
[330929066,1719945120931,-500.0,0.00022465,4]
[330929067,1719945120941,-500.0,0.00022465,4]
[330929068,1719945120951,-500.0,0.00022465,4]
[330929069,1719945120960,-500.0,0.00022465,4]
[330929070,1719945120969,-500.0,0.00022465,4]
[330929071,1719945120979,-500.0,0.00022465,4]
[330929072,1719945120988,-500.0,0.00022465,4]
[330929073,1719945120997,-500.0,0.00022465,4]
[330929074,1719945121006,-500.0,0.00022465,4]
[330929075,1719945121016,-500.0,0.00022465,4]
[330929076,1719945121025,-500.0,0.00022465,4]
[330929077,1719945121035,-1134.04,0.00022465,4]
[330929078,1719945121044,-500.0,0.00022465,4]
[330929079,1719945121055,-500.0,0.00022465,4]
[330929080,1719945121065,-500.0,0.00022465,4]
[330929081,1719945121075,-558.98,0.00022465,4]
[330929082,1719945121084,-500.0,0.00022465,4]
[330929083,1719945121095,-1134.04,0.00022465,4]
[330929084,1719945121106,-579.92,0.00022465,4]
[330929085,1719945121117,-500.0,0.00022465,4]
[330929087,1719945121439,-500.0,0.00022465,4]
[330929088,1719945121463,-500.0,0.00022465,4]
[330929089,1719945121480,-500.0,0.00022465,4]
[330929090,1719945121492,-500.0,0.00022465,4]
[330929091,1719945121501,-500.0,0.00022465,4]
[330929092,1719945121512,-500.0,0.00022465,4]
[330929093,1719945121521,-500.0,0.00022465,4]
[330929094,1719945121531,-500.0,0.00022465,4]
[330929095,1719945121540,-1134.04,0.00022465,4]
[330929096,1719945121549,-500.0,0.00022465,4]
[330929097,1719945121559,-579.92,0.00022465,4]
[330929098,1719945121568,-500.0,0.00022465,4]
[330929099,1719945121578,-1134.04,0.00022465,4]
[330929100,1719945121587,-500.0,0.00022465,4]
[330929101,1719945121596,-500.0,0.00022465,4]
[330929102,1719945121606,-500.0,0.00022465,4]
[330929103,1719945121615,-500.0,0.00022465,4]
[330929104,1719945121624,-1134.04,0.00022465,4]
[330929105,1719945121635,-579.92,0.00022465,4]
[330929106,1719945121644,-500.0,0.00022465,4]
[330929107,1719945121654,-500.0,0.00022465,4]
[330929108,1719945121663,-500.0,0.00022465,4]
[330929109,1719945121672,-500.0,0.00022465,4]
[330929110,1719945121682,-1134.04,0.00022465,4]
[330929111,1719945121692,-579.92,0.00022465,4]
[330929112,1719945121702,-500.0,0.00022465,4]
[330929113,1719945121714,-500.0,0.00022465,4]
[330929114,1719945121724,-458.83,0.00022465,4]
[330929115,1719945121734,-163.45,0.00022465,4]
[330929116,1719945121744,-500.0,0.00022465,4]
[330929117,1719945121753,-1134.04,0.00022465,4]
[330929118,1719945121763,-579.92,0.00022465,4]
[330929119,1719945121772,-500.0,0.00022465,4]
[330929120,1719945121782,-500.0,0.00022465,4]
[330929121,1719945121792,-579.92,0.00022465,4]
[330929122,1719945121802,-1134.04,0.00022465,4]
[330929123,1719945121812,-204.6,0.00022465,4]
[330929124,1719945121821,-544.52,0.00022465,4]
[330929125,1719945121830,-579.92,0.00022465,4]
[330929126,1719945121840,-1134.04,0.00022465,4]
[330929127,1719945121849,-579.92,0.00022465,4]
[330929128,1719945121859,-544.52,0.00022465,4]
[330929129,1719945121868,-1134.04,0.00022465,4]
[330929130,1719945121877,-500.0,0.00022465,4]
[330929131,1719945121887,-500.0,0.00022465,4]
[330929132,1719945121897,-500.0,0.00022465,4]
[330929133,1719945121906,-500.0,0.00022465,4]
[330929134,1719945121915,-500.0,0.00022465,4]
[330929135,1719945121924,-579.92,0.00022465,4]
[330929136,1719945121933,-940.21058173,0.00022465,4]
[330929137,1719945121962,-193.82941827,0.00022465,4]
[330929138,1719945121971,-544.52,0.00022465,4]
[330929139,1719945121980,-500.0,0.00022465,4]
[330929140,1719945121990,-358.85918297,0.00022465,4]
[330929141,1719945122002,-141.14081703,0.00022465,4]
[330929142,1719945122011,-455.65075151,0.00022465,4]
[330929143,1719945122023,-44.34924849,0.00022465,4]
[330929144,1719945122032,-579.92,0.00022465,4]
[330929146,1719945122042,-381.86075151,0.00022465,4]
[330929147,1719945122053,-618.13924849,0.00022465,4]
[330929148,1719945122062,-500.0,0.00022465,4]
[330929149,1719945122072,-1134.04,0.00022465,4]
[330929150,1719945122082,-544.52,0.00022465,4]
[330929151,1719945122091,-500.0,0.00022465,4]
[330929152,1719945122100,-1000.0,0.00022465,4]
[330929153,1719945122110,-500.0,0.00022465,4]
[330929154,1719945122119,-579.92,0.00022465,4]
[330929156,1719945122128,-500.0,0.00022465,4]
[330929157,1719945122139,-669.24346035,0.00022465,4]
[330929158,1719945122149,-1134.04,0.00022465,4]
[330929159,1719945122158,-500.0,0.00022465,4]
[330929160,1719945122167,-544.52,0.00022465,4]
[330929161,1719945122176,-500.0,0.00022465,4]
[330929162,1719945122186,-579.92,0.00022465,4]
[330929163,1719945122195,-500.0,0.00022465,4]
[330929164,1719945122205,-1134.04,0.00022465,4]
[330929165,1719945122216,-500.0,0.00022465,4]
[330929166,1719945122227,-500.0,0.00022465,4]
[330929167,1719945122236,-500.0,0.00022465,4]
[330929168,1719945122246,-500.0,0.00022465,4]
[330929169,1719945122255,-579.92,0.00022465,4]
[330929170,1719945122266,-500.0,0.00022465,4]
[330929171,1719945122275,-544.52,0.00022465,4]
[330929172,1719945122285,-1134.04,0.00022465,4]
[330929173,1719945122294,-500.0,0.00022465,4]
[330929174,1719945122304,-500.0,0.00022465,4]
[330929175,1719945122313,-500.0,0.00022465,4]
[330929176,1719945122323,-529.21,0.00022465,4]
[330929177,1719945122332,-544.52,0.00022465,4]
[330929178,1719945122342,-579.92,0.00022465,4]
[330929179,1719945122355,-1134.04,0.00022465,4]
[330929180,1719945122364,-500.0,0.00022465,4]
[330929181,1719945122374,-193.67,0.00022465,4]
[330929182,1719945122383,-238.67,0.00022465,4]
[330929183,1719945122394,-529.21,0.00022465,4]
[330929184,1719945122405,-579.92,0.00022465,4]
[330929185,1719945122414,-500.0,0.00022465,4]
[330929186,1719945122424,-443.72614131,0.00022465,4]
[330929187,1719945122442,-690.31385869,0.00022465,4]
[330929188,1719945122451,-590.52,0.00022465,4]
[330929189,1719945122460,-579.92,0.00022465,4]
[330929190,1719945122470,-500.0,0.00022465,4]
[330929191,1719945122480,-529.21,0.00022465,4]
[330929192,1719945122490,-1134.04512419,0.00022465,4]
[330929193,1719945122499,-500.0,0.00022465,4]
[330929194,1719945122510,-500.0,0.00022465,4]
[330929195,1719945122519,-500.0,0.00022465,4]
[330929196,1719945122529,-500.0,0.00022465,4]
[330929197,1719945122539,-500.0,0.00022465,4]
[330929198,1719945122548,-500.0,0.00022465,4]
[330929199,1719945122558,-500.0,0.00022465,4]
[330929200,1719945122568,-500.0,0.00022465,4]
[330929201,1719945122578,-500.0,0.00022465,4]
[330929202,1719945122587,-500.0,0.00022465,4]
[330929203,1719945122596,-500.0,0.00022465,4]
[330929204,1719945122605,-579.92,0.00022465,4]
[330929205,1719945122614,-500.0,0.00022465,4]
[330929206,1719945122624,-529.21,0.00022465,4]
[330929207,1719945122633,-500.0,0.00022465,4]
[330929208,1719945122643,-617.51,0.00022465,4]
[330929209,1719945122652,-579.93,0.00022465,4]
[330929210,1719945122661,-422.30226909,0.00022465,4]
[330929211,1719945122675,-77.69773091,0.00022465,4]
[330929212,1719945122684,-452.36,0.00022465,4]
[330929213,1719945122694,-529.21,0.00022465,4]
[330929214,1719945122704,-500.0,0.00022465,4]
[330929215,1719945122714,-617.51,0.00022465,4]
[330929216,1719945122723,-500.0,0.00022465,4]
[330929217,1719945122731,-500.0,0.00022465,4]
[330929218,1719945122741,-529.21,0.00022465,4]
[330929219,1719945122751,-179.11625537,0.00022465,4]
[330929220,1719945122764,-438.39374463,0.00022465,4]
[330929221,1719945122773,-691.4,0.00022465,4]
[330929222,1719945122782,-500.0,0.00022465,4]
[330929223,1719945122791,-500.0,0.00022465,4]
[330929224,1719945122800,-500.0,0.00022465,4]
[330929225,1719945122809,-617.51,0.00022465,4]
[330929226,1719945122819,-691.4,0.00022465,4]
[330929227,1719945122828,-404.27091566,0.00022465,4]
[330929243,1719945155221,886.0,0.0002465,60]
[330929296,1719945246506,4268.0975229,0.000118,2]
[330929297,1719945246529,10000.0,0.000118,2]
[330929298,1719945246553,10000.0,0.000118,2]
[330929299,1719945246575,10000.0,0.000118,2]
[330929300,1719945246597,10000.0,0.000118,2]
[330929301,1719945246619,10000.0,0.000118,2]
[330929302,1719945246641,3639.4264218,0.000118,2]
[330929405,1719945330500,1285.09309199,0.00011199,2]
[330929456,1719945422741,1906033.92764808,0.000225,120]
[330929484,1719945455703,465.65120639,0.00011199,2]
[330929498,1719945472485,257.60465918,0.00011199,2]
[330929571,1719945607494,4352.22462064,0.00011199,2]
[330929572,1719945607524,3574.91734587,0.00011199,2]
[330929581,1719945637226,2374.91937654,0.00011199,2]
[330929594,1719945703742,1012.62731708,0.00011199,2]
[330929596,1719945719011,724.99413129,0.00011199,2]
[330929598,1719945729609,763.58677382,0.00011199,2]
[330929599,1719945743034,647.07170086,0.00011199,2]
[330929601,1719945748615,901.88335454,0.00011199,2]
[330929602,1719945748642,150.0,0.00011199,2]
[330929603,1719945748664,150.0,0.00011199,2]
[330929604,1719945748684,150.0,0.00011199,2]
[330929605,1719945748705,150.0,0.00011199,2]
[330929606,1719945748726,127.80068377,0.00011199,2]
[330929610,1719945795680,556.72469797,0.00011199,2]
[330929611,1719945826757,388.00771326,0.00011199,2]
[330929612,1719945830894,150.0,0.00011199,2]
[330929613,1719945830916,150.0,0.00011199,2]
[330929614,1719945830937,150.0,0.00011199,2]
[330929615,1719945830960,24.72494916,0.00011199,2]
[330929621,1719945866228,407.22939857,0.00011199,2]
[330929622,1719945866728,224.68530618,0.00011199,2]
[330929623,1719945871549,150.0,0.00011199,2]
[330929624,1719945871576,9.04926274,0.00011199,2]
[330929625,1719945871984,140.95073726,0.00011199,2]
[330929626,1719945872013,81.63206771,0.00011199,2]
[330929627,1719945873249,68.36793229,0.00011199,2]
[330929628,1719945873274,86.63206771,0.00011199,2]
[330929629,1719945876896,63.36793229,0.00011199,2]
[330929630,1719945876922,150.0,0.00011199,2]
[330929631,1719945876948,114.55368824,0.00011199,2]
[330929632,1719945879755,35.44631176,0.00011199,2]
[330929633,1719945879792,150.0,0.00011199,2]
[330929634,1719945879825,293.35753501,0.00011199,2]
[330929635,1719945879854,1899.97027832,0.00011199,2]
[330929637,1719945893547,150.0,0.00011199,2]
[330929638,1719945893574,5.46369995,0.00011199,2]
[330929640,1719945908113,438.05939194,0.00011199,2]
[330929643,1719945919907,19622.36291645,0.00011199,2]
[330929644,1719945921752,1800.0,0.00011199,2]
[330929673,1719945993271,2202.70693934,0.00011199,2]
[330929680,1719946049257,370.49091679,0.00011199,2]
[330930130,1719946232195,-157.51550642,0.00012214,2]
[330930131,1719946232204,-308.13569997,0.00012273,2]
[330930132,1719946232217,-104.48269355,0.00012273,2]
[330930133,1719946232226,-160.0,0.00012302,2]
[330930134,1719946232235,-435.51730645,0.00012314,2]
[330930135,1719946232247,-3.85232028,0.00012314,2]
[330930136,1719946232256,-450.75132957,0.00012314,2]
[330930137,1719946232266,-1691.24578734,0.00013,2]
[330930138,1719946232277,-1251.71322753,0.00013472,2]
[330930139,1719946232286,-300.0,0.00013721,2]
[330930140,1719946232296,-300.0,0.00013899,2]
[330930141,1719946232305,-2850.77523532,0.000139,2]
[330930142,1719946232317,-1203.29676468,0.000139,2]
[330930143,1719946232326,-307.8224,0.000139,2]
[330930144,1719946232336,-12491.4995,0.000139,2]
[330930145,1719946232345,-36034.159,0.000139,2]
[330930146,1719946232355,-921.19939038,0.000139,2]
[330930147,1719946232364,-2500.0,0.000139,2]
[330930148,1719946232373,-1652.91824242,0.000139,2]
[330930149,1719946232383,-317.60945081,0.00013999,2]
[330930150,1719946232394,-240851.63794398,0.00014,2]
[330930151,1719946232443,-530.44,0.00014,2]
[330930152,1719946232455,-1192.8949193,0.00014,2]
[330930153,1719946232467,-11604.01258862,0.00014,2]
[330930154,1719946232479,-6400.0,0.00014,2]
[330930155,1719946232492,-1182590.10741875,0.00014,2]
[330930156,1719946232503,-2277.24310221,0.00014,2]
[330930157,1719946232691,-500.0,0.00014,2]
[330930276,1719946238309,-1396.47010831,0.00014,2]
[330930278,1719946238321,-312.6138,0.00014,2]
[330930280,1719946238332,-838.98566296,0.00014,2]
[330930283,1719946238343,-8330.66819153,0.00014,2]
[330930290,1719946238406,-279.88742369,0.00014,2]
[330930292,1719946238418,-1999.96712907,0.00014,2]
[330930293,1719946238430,-1988.46091552,0.00014,2]
[330930294,1719946238442,-2355.90235461,0.00014,2]
[330930295,1719946238453,-3731.29511736,0.00014,2]
[330930296,1719946238465,-482.74772025,0.00014,2]
[330930297,1719946238477,-443.13092382,0.00014,2]
[330930298,1719946238489,-219118.04969121,0.00014,2]
[330930299,1719946238665,-861.13551302,0.00014,2]
[330930300,1719946238677,-11649.72028789,0.00014,2]
[330930349,1719946240268,-3933.13477447,0.00014,2]
[330930351,1719946240281,-6000.0,0.00014,2]
[330930353,1719946240292,-271.26559914,0.00014,2]
[330930355,1719946240306,-376.955934,0.00014,2]
[330930378,1719946240514,-9868.98114784,0.00014,2]
[330930380,1719946240525,-3870.18624551,0.00014,2]
[330930383,1719946240538,-1697.27162398,0.00014,2]
[330930385,1719946240550,-533.1,0.00014,2]
[330930387,1719946240561,-7021.37495721,0.00014,2]
[330930401,1719946240687,-8473.13747427,0.00014,2]
[330930405,1719946240817,-670.7,0.00014,2]
[330930406,1719946240829,-43800.66460358,0.00014,2]
[330930407,1719946240840,-3227.78121586,0.00014,2]
[330930408,1719946240851,-3755.125,0.00014,2]
[330930409,1719946240862,-165330.94234068,0.00014,2]
[330930410,1719946240873,-373.89184271,0.00014,2]
[330930411,1719946240884,-864.37318362,0.00014,2]
[330930412,1719946240894,-397.63098387,0.00014,2]
[330930413,1719946240905,-1960.73599004,0.00014,2]
[330930414,1719946240916,-908.5610997,0.00014,2]
[330930415,1719946240927,-85567.13992091,0.00014,2]
[330930416,1719946241018,-70196.18932463,0.00014,2]
[330930421,1719946243221,-5879.89464563,0.00013574,2]
[330930422,1719946243231,-43389.50463963,0.00014,2]
[330930423,1719946243243,-801879.92747034,0.00014,2]
[330930424,1719946243252,-177.24542338,0.00014,2]
[330930425,1719946243262,-305.60058791,0.00014,2]
[330930426,1719946243272,-333.57022028,0.00014,2]
[330930427,1719946243283,-499.99,0.000141,2]
[330930428,1719946243292,-1547.16799344,0.000142,2]
[330930429,1719946243302,-250.0,0.00014793,2]
[330930430,1719946243311,-23768.24,0.00014823,2]
[330930431,1719946243321,-921.19939029,0.00014899,2]
[330930432,1719946243330,-17434.30690802,0.00014899,2]